Cogmind - Beta 15 @@@ ROGUE MODE // 2025.07.31 @ 10:09:07 Player: Yam Yam Result: Destroyed by YU-XIT(h) with Bolt Gun Performance ------------- Evolutions (0) 0 Regions Visited (3) 600 Robots Destroyed (13) 65 Value Destroyed (404) 404 Prototype IDs (0) 0 Alien Tech Used (0) 0 Bonus (770) 770 TOTAL SCORE: 1839 Bonus ------- Registered with UFD 300 Met Optimus in HQ 500 Friendly Fire -30 Cogmind --------- Core Integrity 0/250 Matter 300/300 Energy 250/250 System Corruption 0% Temperature Cool (76) Movement Core (100) Ox1 Location -8/Scraptown Parts ------- > --- POWER (1) -------- Ion Engine > --- PROPULSION (2) --- Overtuned Treads > --- UTILITY (2) ------ Seismic Detector System Shield > --- WEAPON (2) ------- (None) > --- INVENTORY (5) ---- Overtuned Treads Overtuned Treads Medium Laser Light Assault Rifle Barrage Gun Peak State ------------ > --- POWER ------------ Ion Engine > --- PROPULSION ------- Overtuned Treads Overtuned Treads > --- UTILITY ---------- Seismic Detector System Shield > --- WEAPON ----------- Beam Rifle Plasma Rifle > --- INVENTORY -------- Overtuned Treads Overtuned Treads Medium Laser Light Assault Rifle Barrage Gun [Rating: 19] Favorites ----------- Power Ion Engine Engine Ion Engine Propulsion Light Treads Treads Light Treads Wheel Wheel Utility Seismic Detector Device Seismic Detector Hackware System Shield Weapon Assault Rifle Energy Gun Beam Rifle Ballistic Gun Assault Rifle Build | -11 -10 -10 -8 ------- Run | Yrd Mat Sub Scr Slots Evolved . | . . . . Power . | . . . . Propulsion . | . . . . Utility . | . . . . Weapon . | . . . . Parts Attached 16 | 5 2 2 7 Power 3 | 1 1 . 1 Engine 3 | 1 1 . 1 Core . | . . . . Reactor . | . . . . Propulsion 6 | 2 . 2 2 Treads 4 | 2 . . 2 Leg . | . . . . Wheel 2 | . . 2 . Hover . | . . . . Flight . | . . . . Utility 3 | . 1 . 2 Device 2 | . 1 . 1 Storage . | . . . . Processor . | . . . . Hackware 1 | . . . 1 Protection . | . . . . Artifact . | . . . . Weapon 4 | 2 . . 2 Energy Gun 2 | . . . 2 Energy Cannon . | . . . . Ballistic Gun 2 | 2 . . . Ballistic Cannon . | . . . . Launcher . | . . . . Special Weapon . | . . . . Impact Weapon . | . . . . Slashing Weapon . | . . . . Piercing Weapon . | . . . . Special Melee Weapon . | . . . . Unidentified Prototypes . | . . . . Parts Lost 9 | . . 3 6 Power 1 | . . . 1 Propulsion 5 | . . 2 3 Utility 1 | . . 1 . Weapon 2 | . . . 2 Highest Loss Streak 3 | . . 3 3 To Critical Strikes . | . . . . Average Backups 4 | 2 4 3 4 Power . | . . . . Propulsion 1 | 1 2 1 . Utility . | . . . . Weapon 2 | . 1 2 3 Tool/Special . | . . . . Unused Backups 5 | . . . 5 Power . | . . . . Propulsion 2 | . . . 2 Utility . | . . . . Weapon 3 | . . . 3 Tool/Special . | . . . . Average Slot Usage (%) 82 | . 73 77 89 Engine 13 | . 14 14 13 Treads 13 | . 28 16 3 Wheel 12 | . . 9 22 Device 8 | . 2 8 13 Hackware 3 | . . . 8 Energy Gun 2 | . . . 6 Ballistic Gun 25 | . 28 28 21 Peak Build Rating 19 | 5 6 6 19 Average Rating 7 | 3 5 5 9 On Entrance 4 | . 5 6 5 Naked Turns . | . . . . Heaviest Build 13 | 8 9 9 13 Greatest Support 40 | 40 40 40 36 Greatest Overweight (x) 4 | . . 2 4 Average Overweight (x) . | . . . . Largest Inventory Capacity 5 | 5 5 5 5 Average Capacity 5 | 5 5 5 5 Most Carried 5 | 5 5 5 5 Average Carried 4 | 2 4 3 4 Final Capacity 5 | 5 5 5 5 Final Carried 5 | 4 4 3 5 Class Distribution -------------------- 100% | Mutant Dominant Class ---------------- Mutant | -10/Materials Mutant | -10/Subcaves Mutant | -8/Scraptown Resources | -11 -10 -10 -8 ----------- Run | Yrd Mat Sub Scr Matter Collected 474 | 185 153 73 63 Remotely . | . . . . Salvage Created 485 | . 126 100 259 Parts 22 | . 7 9 6 Haulers Intercepted . | . . . . Recyclers Shooed . | . . . . Parts Field Recycled . | . . . . Retrieved Matter . | . . . . Parts Self-Destructed 14 | . . 14 . Prevented . | . . . . Kills | -11 -10 -10 -8 ------- Run | Yrd Mat Sub Scr Combat Hostiles Destroyed 11 | . 4 3 4 Guns 9 | . 4 3 2 Classes Destroyed 5 | . 2 1 2 Turret 2 | . . 2 . Swarmer 5 | . 2 3 . Grunt 2 | . 2 . . Ranger 2 | . . . 2 Scrapper 2 | . . . 2 Best Kill Streak 5 | . 2 5 4 Combat Bots Only 4 | . 2 3 4 Max Kills in Single Turn 2 | . 1 2 1 Gunslinging . | . . . . Exploded . | . . . . Melee . | . . . . Uniques/NPCs Destroyed . | . . . . Combat | -11 -10 -10 -8 -------- Run | Yrd Mat Sub Scr Hostile Shots Fired 195 | . 45 82 68 Missed 66 | . 11 40 15 Hits 129 | . 34 42 53 Projectile 129 | . 34 42 53 Critical Strikes 2 | . . . 2 Damage Taken 1397 | . 365 319 713 Core 250 | . 33 80 137 Absorbed by Shields . | . . . . Core Remaining (%) 100 | 100 . . . Volleys Fired 46 | . 22 12 12 Largest 2 | . 2 2 2 Hottest 131 | . 40 40 131 Shots Fired 91 | . 44 24 23 Gun 91 | . 44 24 23 Cannon . | . . . . Launcher . | . . . . Special . | . . . . Kinetic 72 | . 44 24 4 Thermal 19 | . . . 19 Explosive . | . . . . Electromagnetic . | . . . . Robot Hit Streak 8 | . 8 7 8 Robot Miss Streak 5 | . 2 5 1 Penetration Max . | . . . . Secondary Targets 2 | . . 2 . Max Gunslinging Chain 1 | . . 1 . Shots Hit Robots 55 | . 28 12 15 Core Hits 22 | . 8 8 6 Critical Kills . | . . . . Critical Parts Destroyed . | . . . . Critical Strikes 1 | . . . 1 Burn 1 | . . . 1 Melee Attacks . | . . . . Impact . | . . . . Slashing . | . . . . Piercing . | . . . . Sneak Attacks . | . . . . Combat Hostiles . | . . . . Follow-up Attacks . | . . . . Damage Inflicted 723 | . 292 143 288 Guns 715 | . 292 143 280 Cannons . | . . . . Explosions . | . . . . Melee . | . . . . Ramming 8 | . . . 8 Kinetic 480 | . 292 143 45 Thermal 235 | . . . 235 Explosive . | . . . . Electromagnetic . | . . . . Impact . | . . . . Slashing . | . . . . Piercing . | . . . . Highest Corruption . | . . . . Average Corruption . | . . . . Corruption Purged . | . . . . Corruption Blocked . | . . . . Overload Shots . | . . . . Overflow Damage . | . . . . Projectiles . | . . . . Explosions . | . . . . Melee . | . . . . Knockbacks . | . . . . Impact . | . . . . Kinetic . | . . . . Secondary . | . . . . Self-Inflicted Damage 2 | . . . 2 Shots . | . . . . Rammed 4 | . . . 4 Targets Rammed 4 | . . . 4 Kicked . | . . . . Crushed . | . . . . Highest Temperature 188 | . 18 . 188 Average Temperature 71 | . 9 . 91 Received Heat Transfer 639 | . 132 207 300 Siege Activations . | . . . . Martial Activations . | . . . . Shielding Activations . | . . . . Robots Disrupted . | . . . . Combat Hostiles . | . . . . Robots Corrupted . | . . . . Combat Hostiles . | . . . . Parts Fried . | . . . . Impact Corruptions . | . . . . Robots Melted 2 | . . . 2 Combat Hostiles 2 | . . . 2 Parts Melted 5 | . . . 5 Heat Transferred 610 | . . . 610 Parts Sabotaged . | . . . . Parts Stolen . | . . . . Parts Stripped . | . . . . Power Chain Reactions . | . . . . Alert | -11 -10 -10 -8 ------- Run | Yrd Mat Sub Scr Maximum Alert Level . | . . . . Low Security (%) 100 | 100 100 . . Level 1 . | . . . . Level 2 . | . . . . Level 3 . | . . . . Level 4 . | . . . . Level 5 . | . . . . High Security . | . . . . Max Security . | . . . . Peak Influence 40 | . 40 . . Initial . | . . . . Average 8 | . 11 . . Influence Increases 260 | . 100 160 . Destroy 0b10 Robot/C 180 | . 80 100 . Destroy Leader 20 | . 20 . . Lose Combat Pursuer 60 | . . 60 . Influence Decreases 260 | . 100 110 50 Entered New Map 50 | . . . 50 Time Decay 180 | . 100 80 . Lost Part 30 | . . 30 . Squads Dispatched . | . . . . Investigation . | . . . . Extermination . | . . . . Reinforcement . | . . . . Assault . | . . . . Garrison . | . . . . Intercept . | . . . . Searches Triggered . | . . . . Construction Impeded . | . . . . Haulers Reinforced . | . . . . Active Scanning Responses . | . . . . Cargo Convoy Interrupts . | . . . . Stealth | -11 -10 -10 -8 --------- Run | Yrd Mat Sub Scr Distress Signals 1 | . 1 . . Communications Jammed . | . . . . Distress Signals . | . . . . Times Spotted 28 | . 8 8 12 Peak Tracking Total 6 | . 5 5 6 Tactical Retreats 1 | . . 1 . Traps | -11 -10 -10 -8 ------- Run | Yrd Mat Sub Scr Traps Triggered . | . . . . Indirectly . | . . . . Trap Hack Attempts . | . . . . Triggered . | . . . . Disarmed . | . . . . Reprogrammed . | . . . . Reused . | . . . . Traps Extracted . | . . . . Installed . | . . . . Triggered . | . . . . Machines | -11 -10 -10 -8 ---------- Run | Yrd Mat Sub Scr Machines Disabled 1 | . . 1 . Max in Single Turn 1 | . . 1 . Machines Repaired . | . . . . Machines Dismantled . | . . . . Machines Sabotaged . | . . . . Overloaded Fab Kills . | . . . . Hacking | -11 -10 -10 -8 --------- Run | Yrd Mat Sub Scr Machines Accessed . | . . . . Terminals . | . . . . Fabricators . | . . . . Repair Stations . | . . . . Recycling Units . | . . . . Scanalyzers . | . . . . Garrison Access . | . . . . Total Hacks . | . . . . Successful . | . . . . Failed . | . . . . Catastrophic . | . . . . Database Lockouts . | . . . . Manual . | . . . . Terminals . | . . . . Fabricators . | . . . . Repair Stations . | . . . . Recycling Units . | . . . . Scanalyzers . | . . . . Garrison Access . | . . . . Terminal Hacks . | . . . . Fabricator Hacks . | . . . . Repair Station Hacks . | . . . . Recycling Unit Hacks . | . . . . Scanalyzer . | . . . . Garrison Access Hacks . | . . . . Unauthorized Hacks . | . . . . Terminals . | . . . . Fabricators . | . . . . Repair Stations . | . . . . Recycling Units . | . . . . Scanalyzers . | . . . . Garrison Access . | . . . . Data Cores Recovered . | . . . . Used . | . . . . Hacking Detections . | . . . . Full Trace Events . | . . . . Feedback Events . | . . . . Feedback Blocked . | . . . . Robot Schematics Acquired . | . . . . Robots Built . | . . . . Authchips . | . . . . Time . | . . . . Total Robot Build Rating . | . . . . Part Schematics Acquired . | . . . . Parts Built . | . . . . Authchips . | . . . . Time . | . . . . Total Part Build Rating . | . . . . Parts Repaired . | . . . . Time . | . . . . Parts Recycled . | . . . . Recycled Matter . | . . . . Retrieved Matter . | . . . . Retrieved Components . | . . . . Parts Scanalyzed . | . . . . Part Schematics Acquired . | . . . . Parts Damaged . | . . . . Bothacking | -11 -10 -10 -8 ------------ Run | Yrd Mat Sub Scr Used RIF Installer . | . . . . Robots Hacked . | . . . . Non-combat . | . . . . Combat . | . . . . Robot Hacks Applied . | . . . . Relay Couplers Released . | . . . . Fabnet Peak Effective % . | . . . . Robots Rewired . | . . . . Allies Hacked . | . . . . Hacks Repelled . | . . . . Allies | -11 -10 -10 -8 -------- Run | Yrd Mat Sub Scr Total Allies . | . . . . Largest Group . | . . . . Highest-Rated Group . | . . . . Highest-Rated Ally . | . . . . Total Orders . | . . . . Ally Attacks . | . . . . Total Damage . | . . . . Kills . | . . . . Allies Corrupted . | . . . . Allies Melted . | . . . . Intel | -11 -10 -10 -8 ------- Run | Yrd Mat Sub Scr Active Infowar (turns) 768 | . 62 177 529 Sensors 239 | . 62 177 . Seismic 529 | . . . 529 Robot Analysis Total . | . . . . Derelict Logs Recovered . | . . . . Drone Launches . | . . . . Drone Recoveries . | . . . . Exploration | -11 -10 -10 -8 ------------- Run | Yrd Mat Sub Scr Turns Passed 1294 | 89 340 304 561 Spaces Moved 987 | 61 151 209 566 Core 44 | 21 . 3 20 Treads 300 | 40 151 83 26 Legs . | . . . . Wheels 643 | . . 123 520 Hover . | . . . . Flight . | . . . . Fastest Speed 50 | 50 160 80 80 Average Speed 106 | 122 160 112 88 Slowest Speed 250 | 160 160 160 250 Overloaded Moves . | . . . . Propulsion Burnouts . | . . . . Robots Hopped . | . . . . Potential Cave-ins . | . . . . Cave-ins Triggered . | . . . . Exploration Rate (%) 27 | 4 35 17 52 Regions Visited 3 Branch Regions 2 Pre-discovered Areas . | . . . . Known Exits Taken . | . . . . Unknown Exits Taken 3 | 1 1 1 . Scrap Searched 3 | . . . 3 Spaces Dug . | . . . . Terrain Destroyed . | . . . . Melee . | . . . . Projectile . | . . . . AOE . | . . . . Terrain Rammed . | . . . . Walls Destroyed . | . . . . Machines Disabled . | . . . . Actions | -11 -10 -10 -8 --------- Run | Yrd Mat Sub Scr Total 1146 | 76 210 255 605 Wait 70 | 2 33 32 3 Move 984 | 60 150 208 566 Hop . | . . . . Pick Up 22 | 9 2 1 10 Fast Attach . | . . . . Attach 13 | 5 1 2 5 Detach . | . . . . Swap 3 | . 1 . 2 Drop 4 | . 1 . 3 Fire 46 | . 22 12 12 Melee . | . . . . Ram 4 | . . . 4 Kick . | . . . . Crush . | . . . . Escape Stasis . | . . . . Rewire . | . . . . Trap . | . . . . Miscellaneous . | . . . . Route ------- -11/Scrapyard -10/Materials (discovered 2 exits: [*Mat] / [*Sub]) -10/Subcaves (discovered 3 exits: [*Mat] / [*Rec] / [*Scr]) -8/Scraptown (discovered 2 exits: Fac x2) History --------- Turn | Location | Event 14 | -11/Scrapyard | Discovered new exit (range 16) 90 | -11/Scrapyard | Entered Materials 91 | -10/Materials | Met a group of wandering Federalists 173 | -10/Materials | Lost 3 allies 289 | -10/Materials | Discovered new exit (range 10) 300 | -10/Materials | Build established: Mutant 332 | -10/Materials | Discovered new exit (range 15) 430 | -10/Materials | Entered Subcaves 431 | -10/Subcaves | Continued accompanying wandering Federalists (1) 593 | -10/Subcaves | Discovered new exit (range 12) 636 | -10/Subcaves | Wandering Federalist uncovered a shortcut to Scraptown 638 | -10/Subcaves | Lost 3 parts (2n1u) 674 | -10/Subcaves | Discovered new exit (range 13) 734 | -10/Subcaves | Entered Scraptown 984 | -8/Scraptown | Visited TADAMA 1022 | -8/Scraptown | Visited UFD Registry 1022 | -8/Scraptown | Registered with UFD as "Plasmaboard" 1112 | -8/Scraptown | Met Optimus 1112 | -8/Scraptown | Accepted into 0bPrime 1135 | -8/Scraptown | Visited LU-1G1's Boring Crew 1150 | -8/Scraptown | Civil war broke out across Scraptown 1178 | -8/Scraptown | Core integrity fell below 50% 1211 | -8/Scraptown | Lost 3 parts (1p2n) 1227 | -8/Scraptown | Identified exit to Factory 1252 | -8/Scraptown | Lost 7 allies 1292 | -8/Scraptown | Core integrity fell below 20% 1295 | -8/Scraptown | Destroyed by YU-XIT(h) with Bolt Gun Last Messages --------------- Acquired Barrage Gun. Dropped Assault Rifle. Acquired Ovr. Treads. Slug penetrates Wall. RG-PBH(g): "Don't throw away your lives for a pipe dream!" Ovr. Treads suddenly begins malfunctioning. BB-058(E): "We are one!" Ovr. Treads suddenly begins malfunctioning. Penetrated by Bolt. Plasma Rifle destroyed. Slammed into WO-BL4(j). Bolt penetrates 1L-X9X(j). Slammed into 1L-X9X(j). Beam Rifle destroyed. Slammed into QH-T43(g). Destabilizing: System interference. Seismic Detector temporarily disabled. Ovr. Treads destroyed. Penetrated by Bolt. Map ----- +----------------------------------------------------+ | | | | | | | | | | | | | | | | | | | ?????????????????????????????????????????????????? | | ?????????????????????????????????????????????????? | | ?????????????????????????????????????????????????? | | ?????????????????????????????????????????????????? | | ?????????????????????????????????????????????????? | | ?????????????????????????????????????????????????? | | ?????????????????????????????????????????????????? | | ?????????????????????????????????????????????????? | | ?????????????????????????????????????????????????? | | ?????????????????????????????????????????????????? | | ?????????????????????????????????????????????????? | | ?????????????????????????????????????????????????? | | ?????????????????????????????????????????????????? | | ??????????????????####???????????????????????????? | | ?????????????????## ##??????